bitfinex-derivatives/quotes_ETHF0:USTF0_20250426
["timestamp","ask_amount","ask_price","bid_price","bid_amount"]
[1745626189829,11.63179841,1793.3,1793.2,2.74613]
[1745626190731,10.51722841,1793.3,1793.2,2.74613]
[1745626191728,2.4588,1793.3,1793.2,2.74613]
[1745626192133,0.8237,1793.5,1793.4,1.1145]
[1745626192333,3.53275,1793.5,1793.4,1.1145]
[1745626192635,11.59117841,1793.5,1793.4,1.1145]
[1745626193338,15.78472841,1793.5,1793.4,1.1145]
[1745626194230,10.47672841,1793.5,1793.4,1.1145]
[1745626195432,0.8237,1793.5,1793.4,4.3223]
[1745626196729,2.55,1793.5,1793.4,4.3223]
[1745626198032,10.60842841,1793.5,1793.4,4.3223]
[1745626198239,17.03086841,1793.5,1793.4,4.3223]
[1745626198540,17.03086841,1793.5,1793.4,1.1145]
[1745626199041,15.91642841,1793.5,1793.4,1.1145]
[1745626200542,1.1145,1793.4,1793.3,6.06632]
[1745626200743,9.75122841,1793.4,1793.3,4.32232]
[1745626201245,16.17372841,1793.4,1793.3,1.11452]
[1745626201445,15.05922841,1793.4,1793.3,1.11452]
[1745626202135,9.75122841,1793.4,1793.1,9.1478]
[1745626202331,7.23296,1793.5,1793.1,9.1478]
[1745626202332,3.67861,1793.3,1793.2,1.11462]
[1745626202536,2.564,1793.3,1793.2,1.11462]
[1745626202834,10.62242841,1793.3,1793.2,1.11462]
[1745626203033,10.62242841,1793.3,1793.2,2.78742]
[1745626203233,0.8237,1793.5,1793.4,1.1145]
[1745626203444,3.3957,1793.5,1793.4,1.1145]
[1745626203643,11.45412841,1793.5,1793.4,1.1145]
[1745626203834,11.45412841,1793.5,1793.4,2.7873]
[1745626204237,12.56856841,1793.5,1793.4,2.7873]
[1745626204845,11.45412841,1793.5,1793.4,2.7873]
[1745626206245,5.308,1793.6,1793.5,1.11444]
[1745626206453,5.308,1793.6,1793.5,12.87364]
[1745626206939,3.623,1794.1,1794.0,1.11413]
[1745626207139,10.5705,1794.1,1794.0,1.11413]
[1745626207341,18.62892841,1794.1,1794.0,1.11413]
[1745626208151,19.74299841,1794.1,1794.0,1.11413]
[1745626208343,20.60249841,1794.1,1794.0,1.11413]
[1745626208744,19.48842841,1794.1,1794.0,1.11413]
[1745626210052,15.86542841,1794.1,1794.0,1.11413]
[1745626210439,15.86542841,1794.1,1794.0,2.79443]
[1745626211547,16.97949841,1794.1,1794.0,2.79443]
[1745626211744,1.11413,1794.0,1793.9,4.32199]
[1745626211945,10.79265841,1794.0,1793.9,3.2078]
[1745626212148,16.10065841,1794.0,1793.9,1.11419]
[1745626212344,16.96015841,1794.0,1793.8,1.11421]
[1745626212551,9.67852841,1793.9,1793.8,1.11421]
[1745626213151,16.10071841,1793.9,1793.7,1.6546]
[1745626213354,9.67852841,1793.8,1793.7,2.76892]
[1745626213555,10.53012841,1793.8,1793.7,2.76892]
[1745626213854,2.4717,1793.8,1793.7,2.76892]
[1745626215351,0.8595,1794.0,1793.9,1.11419]
[1745626215553,8.91792841,1794.0,1793.9,1.11419]
[1745626215948,10.66152841,1794.0,1793.9,1.11419]
[1745626216862,11.77565841,1794.0,1793.9,1.11419]
[1745626217061,15.96952841,1794.0,1793.9,1.11419]
[1745626217959,17.08365841,1794.0,1793.9,1.11419]
[1745626218155,15.96952841,1794.0,1793.9,1.11419]
[1745626218955,15.96952841,1794.0,1793.8,1.6422]
[1745626219159,10.66152841,1794.0,1793.8,1.6422]
[1745626219366,10.66152841,1794.0,1793.8,2.4855]
[1745626219367,8.91792841,1794.0,1793.8,2.4855]
[1745626219564,8.91792841,1794.0,1793.8,1.6422]
[1745626219762,10.61832841,1794.0,1793.8,1.6422]
[1745626220060,2.81459,1793.9,1793.8,1.6422]
[1745626220362,1.7004,1793.9,1793.8,1.6422]
[1745626221164,2.81459,1793.9,1793.8,1.6422]
[1745626221764,1.7004,1793.9,1793.8,1.6422]
[1745626221960,2.81459,1793.9,1793.8,1.6422]
[1745626222465,1.11432,1793.7,1793.6,0.8579]
[1745626222660,3.63681,1793.8,1793.6,0.8579]
[1745626223769,3.63681,1793.8,1793.7,1.7434]
[1745626225162,11.69523841,1793.8,1793.7,1.7434]
[1745626225665,1.11438,1793.6,1793.5,5.94]
[1745626225967,9.17280841,1793.6,1793.5,5.94]
[1745626226360,10.81820841,1793.6,1793.5,5.94]
[1745626227166,16.12620841,1793.6,1793.5,5.94]
[1745626227567,19.33400841,1793.6,1793.5,5.94]
[1745626228069,1.11457,1793.3,1793.2,1.6752]
[1745626228270,9.17299841,1793.3,1793.2,1.6752]
[1745626228963,10.78909841,1793.3,1793.2,1.6752]
[1745626230168,1.11463,1793.2,1793.1,3.2078]
[1745626230368,10.84825841,1793.2,1793.1,3.2078]
[1745626230565,2.78983,1793.2,1793.1,3.2078]
[1745626230768,1.11469,1793.1,1793.0,1.7133]
[1745626231061,9.17311841,1793.1,1793.0,1.7133]
[1745626231266,1.11469,1793.1,1793.0,1.7133]
[1745626231473,1.99309,1793.1,1793.0,1.7133]
[1745626232267,1.11475,1793.0,1792.9,3.2078]
[1745626232471,11.65147841,1793.0,1792.9,3.2078]
[1745626232660,3.59305,1793.0,1792.9,3.2078]
[1745626234766,11.65147841,1793.0,1792.9,3.2078]
[1745626234975,13.74452841,1793.0,1792.7,3.86916066]
[1745626235268,1.11506,1792.5,1792.4,0.24716066]
[1745626235467,1.11506,1792.5,1792.4,1.728]
[1745626235770,1.11513,1792.4,1792.3,3.2078]
[1745626236070,1.11513,1792.4,1792.2,3.622]
[1745626236071,1.11525,1792.2,1792.1,4.29606066]
[1745626237673,1.11525,1792.2,1792.1,6.03486066]
[1745626240267,1.11525,1792.2,1792.1,2.82706066]
[1745626240466,12.38147841,1792.2,1792.1,1.98596066]
[1745626240664,1.11531,1792.1,1792.0,5.308]
[1745626240968,10.85573841,1792.1,1792.0,5.308]
[1745626241170,2.79731,1792.1,1792.0,1.7116]
[1745626245579,1.11544,1791.9,1791.8,4.0783]
[1745626245777,1.11544,1791.9,1791.8,5.7317]
[1745626246176,1.11544,1791.9,1791.8,11.0397]
[1745626247275,1.11544,1791.9,1791.8,7.8319]
[1745626247578,0.0148,1792.2,1791.8,15.86769066]
[1745626247771,1.11523,1792.3,1792.1,4.32311]
[1745626247970,1.11523,1792.3,1792.2,3.3736]
[1745626248171,1.11523,1792.3,1792.2,8.6816]
[1745626249072,12.38145841,1792.3,1792.2,6.61695]
[1745626249279,12.38145841,1792.3,1792.2,5.308]
[1745626249677,14.06145841,1792.3,1792.2,5.308]
[1745626249871,10.85365841,1792.3,1792.2,5.308]
[1745626250075,14.06145841,1792.3,1792.2,2.81573]
[1745626250276,1.11537,1792.0,1791.9,4.0834]
[1745626250471,9.17379841,1792.0,1791.9,4.0834]
[1745626250678,1.11537,1792.0,1791.9,3.2078]
[1745626250872,9.17379841,1792.0,1791.9,3.2078]
[1745626251177,9.99199841,1792.0,1791.9,3.2078]
[1745626252375,9.99199841,1792.0,1791.9,3.2032]
[1745626252875,9.99199841,1792.0,1791.9,1.7361]
[1745626256779,1.11544,1791.9,1791.8,0.24716066]
[1745626256983,10.76956841,1791.9,1791.8,1.84626066]
[1745626257275,2.78875,1791.8,1791.3,7.5781]
[1745626257472,9.17404841,1791.6,1791.5,1.5986]
[1745626257869,2.81492,1791.6,1791.5,1.5986]
[1745626258075,1.11581,1791.3,1791.2,6.6e-07]
[1745626258274,1.11587,1791.2,1791.1,4.8064]
[1745626261080,3.55007,1791.2,1791.1,4.8064]
[1745626261275,1.11593,1791.1,1791.0,5.308]
[1745626261475,10.79085841,1791.1,1791.0,5.308]
[1745626261676,2.73243,1791.1,1791.0,5.308]
[1745626261986,2.73243,1791.1,1791.0,6.9739]
[1745626263582,13.99865841,1791.1,1791.0,2.86546]
[1745626263880,2.7901,1791.0,1790.6,3.20780066]
[1745626264080,1.11631,1790.5,1790.4,3.2078]
[1745626264282,1.11631,1790.5,1790.4,4.8405]
[1745626264678,9.17473841,1790.5,1790.4,3.2078]
[1745626264983,1.11656,1790.1,1790.0,6.6e-07]
[1745626265185,1.11654,1790.2,1790.0,5.30800066]
[1745626265380,1.11654,1790.2,1790.1,3.2078]
[1745626267286,9.17496841,1790.2,1790.1,3.2078]
[1745626268182,1.11656,1790.1,1790.0,5.30800066]
[1745626268386,9.17498841,1790.1,1790.0,5.30800066]
[1745626268692,1.11656,1790.1,1790.0,5.30800066]
[1745626270291,9.17201728,1790.1,1790.0,5.30800066]
[1745626272395,9.17201728,1790.1,1790.0,5.308]
[1745626272694,12.37981728,1790.1,1790.0,2.34443]
[1745626272997,22.70001728,1790.1,1790.0,1e-05]
[1745626273292,1.11706,1789.3,1789.2,6.83380066]
[1745626273687,2.79231,1789.6,1789.2,12.95092066]
[1745626273887,1.11705,1789.4,1789.2,7.95092066]
[1745626274291,1.11706,1789.3,1789.2,7.10910066]
[1745626274693,9.17548841,1789.3,1789.2,5.30800066]
[1745626274990,13.54470841,1789.3,1788.8,6.6e-07]
[1745626275194,1.11749,1788.6,1788.5,3.2078]
[1745626275387,6.45422841,1788.9,1788.6,1.11746]
[1745626275595,5.33690841,1788.9,1788.5,3.2078]
[1745626275790,5.33690841,1788.7,1788.3,6.8348]
[1745626276101,3.627,1788.6,1788.3,3.2078]
[1745626276285,3.627,1788.6,1788.3,3.9013]
[1745626276286,6.45452841,1788.4,1788.3,3.9013]
[1745626276486,5.33690841,1788.5,1788.3,3.9013]
[1745626276693,1.724,1788.6,1788.3,5.01894]
[1745626276899,5.33690841,1788.5,1788.3,5.01894]
[1745626277096,5.33690841,1788.5,1788.4,1.11762]
[1745626277297,1.724,1788.6,1788.3,5.01894]
[1745626277594,3.628,1789.0,1788.7,1.11741]
[1745626277799,5.33690841,1788.8,1788.7,1.11741]
[1745626277995,5.33690841,1788.9,1788.7,1.11741]
[1745626278189,5.33690841,1788.9,1788.7,5.01871]
[1745626278391,5.33690841,1788.9,1788.7,6.13612]
[1745626278588,4.0499,1789.3,1789.1,1.11717]
[1745626278794,6.97950841,1789.3,1789.1,1.11717]
[1745626279397,6.97950841,1789.3,1789.0,6.42521]
[1745626279994,1.6426,1789.3,1789.1,1.11717]
[1745626280194,5.33690841,1789.2,1789.1,1.42697]
[1745626280699,1.6426,1789.3,1789.1,2.54414]
[1745626280900,5.33690841,1789.2,1789.1,2.54414]
[1745626281503,1.6426,1789.3,1789.2,1.11712]
[1745626281697,3.654,1789.5,1789.0,8.5158]
[1745626281698,3.654,1789.5,1789.3,1.11702]
[1745626282000,7.02380841,1789.4,1789.3,1.11702]
[1745626282200,7.02380841,1789.4,1789.3,5.01832]
[1745626282201,5.33690841,1789.4,1789.3,5.01832]
[1745626282397,3.2078,1789.6,1789.5,1.11693]
[1745626282601,65.48518,1790.3,1789.9,1.11668]
[1745626282602,4.8947,1790.0,1789.9,1.11668]
[1745626282793,5.33690841,1789.9,1789.8,1.1167]
[1745626282996,4.8947,1790.0,1789.9,1.11668]
[1745626283297,1.6869,1790.0,1789.9,6.42468]
[1745626283502,7.02380841,1790.0,1789.9,5.308]
[1745626283695,7.02380841,1790.0,1789.9,6.42468]
[1745626284002,3.2078,1790.2,1790.1,1.11656]
[1745626284201,3.655,1790.4,1790.0,4.25489]
[1745626284393,5.33690841,1790.2,1790.1,1.11656]
[1745626284999,1.6869,1790.3,1790.2,1.1165]
[1745626285398,7.02380841,1790.3,1790.2,1.1165]
[1745626286106,7.02380841,1790.3,1790.2,6.4245]
[1745626291407,5.33690841,1790.3,1790.2,6.4245]
[1745626291808,1.7211,1790.4,1790.2,6.4245]
[1745626291809,1.7211,1790.4,1790.3,1.11643]
[1745626292009,1.7211,1790.4,1790.3,2.75763]
[1745626292203,7.05800841,1790.4,1790.3,8.06563]
[1745626292802,0.8036,1790.9,1790.8,1.11612]
[1745626293211,6.14050841,1790.9,1790.8,1.11612]
[1745626294207,8.88566841,1790.9,1790.8,6.42412]
[1745626294609,7.76960841,1790.9,1790.8,6.42412]
[1745626294806,8.88566841,1790.9,1790.8,6.42412]
[1745626295107,13.88566841,1790.9,1790.8,5.308]
[1745626296211,1.11625,1790.6,1790.5,1.1163]
[1745626296405,9.66095841,1790.6,1790.5,1.1163]
[1745626296806,12.08595841,1790.6,1790.5,1.1163]
[1745626297308,10.96970841,1790.6,1790.5,1.1163]
[1745626297516,12.08595841,1790.6,1790.5,1.1163]
[1745626298509,1.11632,1790.5,1790.4,1.11633]
[1745626298716,1.6954,1790.5,1790.4,1.11633]
[1745626298914,7.03230841,1790.5,1790.4,1.11633]
[1745626299118,7.03230841,1790.5,1790.4,6.42433]
[1745626299616,8.14861841,1790.5,1790.4,5.308]
[1745626299914,8.14861841,1790.5,1790.4,6.42437]
[1745626300115,8.14861841,1790.5,1790.4,1.11637]
[1745626300713,7.03230841,1790.5,1790.4,1.11637]
[1745626300915,1.6954,1790.5,1790.4,1.11147]
[1745626301116,3.2078,1790.6,1790.5,1.11631]
[1745626301717,4.32405,1790.6,1790.5,1.11631]
[1745626301918,1.11631,1790.5,1790.4,5.308]
[1745626302110,1.11643,1790.3,1790.2,6.6e-07]
[1745626302412,6.45333841,1790.3,1790.2,1.11645066]
[1745626302611,2.70823,1790.3,1790.2,1.11645066]
[1745626302813,1.5918,1790.3,1790.2,1.11645066]
[1745626303214,1.5918,1790.3,1790.2,6.42445066]
[1745626306622,2.70823,1790.3,1790.2,6.42445066]
[1745626306815,2.70823,1790.3,1790.2,5.30800066]
[1745626307214,13.04513841,1790.3,1790.2,5.308]
[1745626307911,1.11675,1789.8,1789.7,1.11676]
[1745626308117,1.14565841,1789.8,1789.7,1.11676]
[1745626308615,0.02890841,1789.8,1789.7,1.11676]
[1745626308815,1.67580841,1789.8,1789.7,1.11676]
[1745626309123,1.67580841,1789.8,1789.7,6.42476]
[1745626309521,1.7026,1789.9,1789.8,1.11675]
[1745626309726,0.8399,1789.9,1789.8,1.11675]
[1745626310026,1.7408,1790.1,1790.0,1.11662]
[1745626310326,1.76970841,1790.1,1790.0,1.11662]
[1745626311119,1.76970841,1790.1,1790.0,6.42462]
[1745626312627,7.7277,1790.4,1790.3,1.11643]
[1745626313129,7.75660841,1790.4,1790.3,6.42443]
[1745626313522,9.36240841,1790.4,1790.3,6.42443]
[1745626313721,7.27097841,1790.4,1790.3,5.308]
[1745626313917,6.15460841,1790.4,1790.3,5.308]
[1745626314118,7.27097841,1790.4,1790.3,5.308]
[1745626314427,6.15460841,1790.4,1790.3,6.42443]
[1745626314617,2.47460841,1790.4,1790.3,6.42443]
[1745626314930,2.47460841,1790.4,1790.3,5.308]
[1745626314931,3.59097841,1790.4,1790.3,5.308]
[1745626315225,2.47460841,1790.4,1790.3,5.308]
[1745626315422,3.59097841,1790.4,1790.3,5.308]
[1745626316228,3.59097841,1790.4,1790.2,1.11648]
[1745626316531,0.02890841,1790.3,1790.2,1.11648]
[1745626317030,1.65660841,1790.3,1790.2,1.11648]
[1745626317224,1.65660841,1790.3,1790.2,6.42448]
[1745626317628,2.77303841,1790.3,1790.2,6.42448]
[1745626317830,5.98083841,1790.3,1790.2,5.308]
[1745626318125,5.98083841,1790.3,1790.1,1.11653]
[1745626318323,0.02890841,1790.2,1790.1,1.11653]
[1745626318730,1.67370841,1790.2,1790.1,1.11653]
[1745626319126,0.02890841,1790.2,1790.1,1.11653]
[1745626319528,3.60107,1790.4,1790.3,1.11643]
[1745626319833,0.02890841,1790.3,1790.2,1.11645]
[1745626320129,0.02890841,1790.3,1790.2,6.42445]
[1745626320345,1.67370841,1790.3,1790.2,6.42445]
[1745626320534,2.79013841,1790.3,1790.2,5.308]
[1745626321230,1.11655,1790.2,1790.0,2.81419066]
[1745626321526,2.85396841,1790.1,1790.0,6.6e-07]
[1745626321730,6.06176841,1790.1,1790.0,6.6e-07]
[1745626321930,6.06176841,1790.1,1789.5,0.0147]
[1745626321931,9.94520841,1790.1,1789.5,0.0147]
[1745626322234,0.02890841,1789.8,1789.7,1.11681]
[1745626322424,6.91570841,1790.0,1789.9,1.11668]
[1745626322625,3.679,1790.0,1789.9,1.11668]
[1745626322825,5.41640841,1790.0,1789.9,1.11668]
[1745626323029,6.53302841,1790.0,1789.9,1.11668]
[1745626323333,6.53302841,1790.0,1789.9,5.308]
[1745626323534,6.53302841,1790.0,1789.9,6.42468]
[1745626323729,0.8509,1790.2,1790.1,1.11656]
[1745626323933,4.4893,1790.3,1790.2,1.1165]
[1745626324129,1.7085,1790.5,1790.4,1.11637]
[1745626324432,1.73740841,1790.5,1790.4,1.11637]
[1745626324635,1.6943,1790.7,1790.6,1.11625]
[1745626324837,4.53548,1790.7,1790.6,1.11625]
[1745626325132,3.44820841,1790.7,1790.6,1.11625]
[1745626325336,0.02890841,1790.7,1790.6,1.11625]
[1745626326730,1.725,1790.8,1790.7,1.11618]
[1745626326934,3.2078,1790.9,1790.8,1.11612]
[1745626327122,3.23670841,1790.9,1790.8,6.42412]
[1745626327737,4.82520841,1790.9,1790.8,6.42412]
[1745626328037,1.61740841,1790.9,1790.8,6.42412]
[1745626328236,0.02890841,1790.9,1790.8,6.42412]
[1745626329138,6.4729,1791.1,1791.0,1.116]
[1745626329438,1.5885,1791.1,1791.0,1.116]
[1745626329637,6.8868,1791.3,1790.9,4.48145]
[1745626329838,1.5885,1791.4,1791.3,1.11581]
[1745626330034,1.5885,1791.4,1791.1,2.78978]
[1745626330035,0.8345,1791.8,1791.6,1.11562]
[1745626330235,0.8345,1791.8,1791.2,2.78969]
[1745626330236,0.02890841,1791.6,1791.5,1.11569]
[1745626330738,3.2078,1792.0,1791.5,1.11569]
[1745626330739,3.2078,1792.0,1791.9,1.11544]
[1745626330937,3.2078,1792.2,1791.7,2.78891]
[1745626331140,0.02890841,1792.2,1791.8,2.78875]
[1745626331439,0.02890841,1792.1,1792.0,1.11537]
[1745626331638,0.02890841,1792.1,1792.0,2.87687]
[1745626331941,1.7249,1792.2,1792.1,1.11531]
[1745626332128,1.75380841,1792.2,1792.1,1.11531]
[1745626332331,1.75380841,1792.2,1792.0,7.0695]
[1745626332332,2.86906841,1792.2,1792.0,8.18483]
[1745626332943,1.75380841,1792.2,1792.0,7.0695]
[1745626333140,1.75380841,1792.2,1792.0,7.0674]
[1745626333141,0.02890841,1792.1,1792.0,7.0674]
[1745626333440,1.14424841,1792.1,1791.9,1.11543]
[1745626333637,0.02890841,1792.0,1791.9,1.11543]
[1745626334042,1.7516,1792.1,1791.9,1.11539]
[1745626334242,0.02890841,1792.0,1791.9,1.11539]
[1745626334643,0.02890841,1792.0,1791.7,3.2078]
[1745626334845,1.14440841,1791.8,1791.7,3.2078]
[1745626335441,0.02890841,1791.8,1791.7,3.2078]
[1745626335641,1.78050841,1791.8,1791.7,3.2078]
[1745626336041,2.89600841,1791.8,1791.7,3.2078]
[1745626337339,1.78050841,1791.8,1791.7,4.32336]
[1745626337740,2.89600841,1791.8,1791.7,3.2078]
[1745626338749,2.89600841,1791.8,1791.6,1.11557]
[1745626339048,0.02890841,1791.7,1791.6,1.11557]
[1745626339748,1.78400841,1791.7,1791.6,1.11557]
[1745626339942,3.2078,1792.1,1792.0,1.11537]
[1745626340147,2.5745,1792.3,1792.2,1.11525]
[1745626340344,1.14415841,1792.2,1792.1,1.6442]
[1745626340651,1.78400841,1792.2,1792.1,2.75951]
[1745626340851,1.7551,1792.2,1792.1,2.75951]
[1745626341145,1.78400841,1792.2,1792.1,2.75951]
[1745626343045,8.03988,1792.5,1792.1,7.64022]
[1745626343351,0.02890841,1792.4,1792.3,1.11519]
[1745626343851,4.852,1792.5,1792.4,1.11513]
[1745626344344,0.02890841,1792.4,1792.1,3.2078]
[1745626344549,0.02890841,1792.4,1792.3,1.11519]
[1745626344746,5.9671,1792.5,1792.4,1.11513]
[1745626344948,1.6442,1792.5,1792.4,1.11513]
[1745626345247,1.67310841,1792.5,1792.4,1.11513]
[1745626345443,2.78816841,1792.5,1792.3,1.11516]
[1745626345650,0.02890841,1792.4,1792.3,1.11516]
[1745626346045,1.6442,1792.5,1792.4,1.11513]
[1745626346242,2.75926,1792.5,1792.4,1.11513]
[1745626346446,2.78816841,1792.5,1792.4,1.11513]
[1745626346649,1.67310841,1792.5,1792.4,1.11513]
[1745626347653,4.83098,1792.7,1792.3,2.78793]
[1745626347952,0.02890841,1792.5,1792.4,1.11223]
[1745626348347,5.3948,1792.7,1792.6,1.115]
[1745626348547,5.3948,1792.7,1792.3,3.64313]
[1745626348548,5.3948,1792.7,1792.5,1.11505]
[1745626348749,1.11501,1792.6,1792.5,1.11505]
[1745626349050,1.11525,1792.2,1792.1,4.0492]
[1745626349255,0.02890841,1792.2,1791.7,4.5782]
[1745626349554,0.02890841,1791.9,1791.8,1.11545]
[1745626349942,0.8674,1792.2,1791.8,7.78875]
[1745626350149,0.89630841,1792.2,1792.1,1.11531]
[1745626350548,2.59020841,1792.2,1792.1,1.11531]
[1745626352555,3.70545841,1792.2,1792.0,1.11533]
[1745626352856,2.59020841,1792.2,1792.1,1.11531]
[1745626359159,0.02890841,1792.2,1792.1,1.11531]
[1745626359458,0.00310292,1792.5,1792.4,1.11513]
[1745626359659,0.03201133,1792.5,1792.4,1.11513]
[1745626359855,1.63921133,1792.5,1792.4,1.11513]
[1745626360557,2.75427133,1792.5,1792.3,2.87446]
[1745626360757,0.02890841,1792.4,1792.3,2.87446]
[1745626361357,1.605,1792.4,1792.3,2.87446]
[1745626361958,2.72017,1792.4,1792.2,1.1152]
[1745626362259,0.02890841,1792.3,1792.2,1.11525]
[1745626362760,1.63390841,1792.3,1792.2,1.11525]
[1745626363061,0.00310292,1792.5,1792.4,1.11513]
[1745626363358,0.00310292,1792.5,1792.3,2.87455]
[1745626363359,0.02890841,1792.4,1792.3,2.87455]
[1745626363958,1.63010841,1792.4,1792.3,2.87455]
[1745626366262,0.00310292,1792.5,1792.4,1.11513]
[1745626366560,1.60430292,1792.5,1792.4,2.78873]
[1745626366859,1.63321133,1792.5,1792.4,2.78873]
[1745626373862,0.8619,1792.7,1792.6,1.115]
[1745626374058,0.02890841,1792.7,1792.6,1.115]
[1745626374364,1.5882,1792.8,1792.7,1.11494]
[1745626374760,1.61710841,1792.8,1792.7,1.11494]
[1745626375558,1.61710841,1792.8,1792.6,1.6042]
[1745626375762,1.69670841,1792.7,1792.6,2.71917]
[1745626376167,3.38110841,1792.7,1792.6,2.71917]
[1745626377167,3.38110841,1792.7,1792.6,1.11497]
[1745626377370,3.38110841,1792.7,1792.6,1.11287]
[1745626381170,11.47655841,1792.7,1792.4,1.11509]
[1745626381372,1.14396841,1792.5,1792.2,3.68600066]
[1745626381570,0.02890841,1792.3,1792.2,6.41030066]
[1745626381773,0.02890841,1792.3,1792.2,2.72430066]
[1745626383168,3.2078,1792.6,1792.2,4.39715066]
[1745626383369,0.02890841,1792.4,1792.3,2.83799]
[1745626383578,0.02890841,1792.4,1792.3,1.11519]
[1745626384266,1.6678,1792.7,1792.6,1.115]
[1745626384773,4.32261,1792.9,1792.8,1.11488]
[1745626385075,5.65408,1793.0,1792.8,1.11488]
[1745626385275,5.33690841,1792.9,1792.8,1.11488]
[1745626385575,6.45171841,1792.9,1792.5,5.99531]
[1745626385774,0.02890841,1792.8,1792.7,1.11489]
[1745626386068,0.02890841,1792.8,1792.4,3.66209]
[1745626386069,0.02890841,1792.8,1792.6,1.11496]
[1745626386272,1.11494,1792.7,1792.6,1.11496]
[1745626386473,1.115,1792.6,1792.5,1.11502]
[1745626386772,0.02890841,1792.6,1792.5,1.11502]
[1745626387169,3.23670841,1792.6,1792.4,1.11508]
[1745626387375,3.23670841,1792.6,1792.3,1.11513]
[1745626387376,0.02890841,1792.4,1792.3,1.11513]
[1745626387969,0.02890841,1792.4,1792.2,4.80122066]
[1745626388275,0.02890841,1792.3,1792.2,1.11522]
[1745626388673,1.93801,1792.5,1792.3,1.11519]
[1745626388972,1.11513,1792.4,1792.3,1.11519]
[1745626389172,0.02890841,1792.4,1792.3,1.11519]
[1745626391573,0.83,1792.7,1792.6,1.115]
[1745626391868,0.85890841,1792.7,1792.6,1.115]
[1745626392073,0.7939,1792.9,1792.8,1.11488]
[1745626392467,0.82280841,1792.9,1792.8,1.11488]
[1745626392668,1.93761841,1792.9,1792.8,1.11488]
[1745626392868,0.82280841,1792.9,1792.8,1.11278]
[1745626393277,6.13080841,1792.9,1792.8,1.11278]
[1745626394172,0.82280841,1792.9,1792.8,1.11278]
[1745626394373,0.02890841,1792.9,1792.8,1.11278]
[1745626396271,0.02890841,1792.9,1792.5,4.044]
[1745626396475,0.02890841,1792.8,1792.7,1.11494]
[1745626396675,0.02890841,1792.8,1792.6,1.11495]
[1745626396970,0.02890841,1792.6,1792.5,1.11502]
[1745626397175,8.13560841,1792.6,1792.5,1.11502]
[1745626397370,7.02060841,1792.6,1792.5,1.11502]
[1745626397571,8.13560841,1792.6,1792.5,1.11502]
[1745626398166,1.71260841,1792.6,1792.5,1.11502]
[1745626399073,4.79983,1792.9,1792.5,2.7876]
[1745626399282,5.17977,1793.0,1792.9,1.11481]
[1745626399579,5.17977,1793.0,1792.8,1.11483]
[1745626399974,0.02890841,1792.9,1792.8,1.11483]
[1745626400473,1.70170841,1792.9,1792.8,1.11483]
[1745626401073,2.81651841,1792.9,1792.8,1.11483]
[1745626401687,2.81651841,1792.9,1792.8,1.11488]
[1745626401866,1.11494,1792.7,1792.6,1.11497]
[1745626402175,0.02890841,1792.7,1792.6,1.11497]
[1745626402481,1.115,1792.6,1792.5,1.11501]
[1745626402780,5.19660841,1792.6,1792.5,1.11501]
[1745626403076,10.50460841,1792.6,1792.5,1.11501]
[1745626403281,12.15900841,1792.6,1792.5,1.11501]
[1745626403474,7.83620841,1792.6,1792.5,1.11501]
[1745626404478,8.95120841,1792.6,1792.5,1.11501]
[1745626404877,7.83620841,1792.6,1792.5,1.11501]
[1745626406172,2.52820841,1792.6,1792.5,1.11501]
[1745626407078,3.64320841,1792.6,1792.5,1.11501]
[1745626407480,3.64320841,1792.6,1792.5,1.11291]
[1745626408182,7.83620841,1792.6,1792.4,2.70829]
[1745626408484,1.64210841,1792.5,1792.4,1.11509]
[1745626410484,1.6132,1792.5,1792.4,1.11509]
[1745626412282,0.8449,1792.6,1792.5,1.11506]
[1745626412674,3.2078,1792.9,1792.5,1.11506]
[1745626412881,0.02890841,1792.7,1792.6,2.8265]
[1745626413283,1.67180841,1792.7,1792.6,2.8265]
[1745626413784,3.2078,1792.9,1792.6,4.9193]
[1745626413986,3.3291,1793.3,1793.2,1.11463]
[1745626414183,1.11438,1793.6,1793.5,1.11444]
[1745626414382,3.3291,1793.6,1793.4,1.11446]
[1745626414693,4.44348,1793.6,1793.4,1.11446]
[1745626414884,4.44348,1793.6,1793.3,1.7115]
[1745626414885,1.67180841,1793.5,1793.3,1.7115]
[1745626415084,0.02890841,1793.4,1793.3,1.7115]
[1745626415285,0.02890841,1793.4,1793.3,2.82607]
[1745626415485,1.63590841,1793.4,1793.3,2.82607]
[1745626416986,0.02890841,1793.4,1793.3,2.82607]
[1745626417390,1.607,1793.5,1793.4,1.1145]
[1745626417688,0.02890841,1793.5,1793.4,1.1145]
[1745626417889,0.83,1793.6,1793.5,1.11444]
[1745626418087,1.607,1793.7,1793.5,2.73734]
[1745626418390,1.607,1793.7,1793.6,1.11438]
[1745626418582,1.607,1793.7,1793.6,2.74858]
[1745626418785,1.63590841,1793.7,1793.6,2.74858]
[1745626421389,1.63590841,1793.7,1793.3,1.11452]
[1745626421390,1.11448,1793.5,1793.3,1.11452]
[1745626421594,1.11448,1793.5,1793.3,1.11457]
[1745626421595,1.62280841,1793.4,1793.3,1.11457]
[1745626421991,1.62280841,1793.4,1793.3,1.11247]
[1745626422692,1.62280841,1793.4,1793.3,2.72737]
[1745626424797,3.2078,1794.6,1793.4,2.78619]
[1745626424993,1.7523,1794.4,1794.3,1.11394]
[1745626425506,1.7523,1794.4,1794.2,1.6595]
[1745626425904,2.86619,1794.4,1794.2,2.77349]
[1745626426200,5.308,1794.5,1794.2,1.6595]
[1745626426510,7.0603,1794.5,1794.2,1.6595]
[1745626426911,7.0603,1794.5,1794.4,1.11388]
[1745626427810,7.0603,1794.5,1794.3,1.1139]
[1745626428010,7.0603,1794.5,1794.4,1.11388]
[1745626429010,8.17412,1794.5,1794.3,1.1139]
[1745626429207,3.2078,1794.4,1794.2,1.6595]
[1745626429406,1.7397,1794.3,1794.2,2.77351]